bitfinex/quotes_SOLUSD_20251119
["timestamp","ask_amount","ask_price","bid_price","bid_amount"]
[1763512652262,5.45020035,140.2,140.17,4.24]
[1763512652466,5.45020035,140.21,140.17,4.24]
[1763512652662,5.45020035,140.21,140.18,0.68]
[1763512653852,5.45020035,140.21,140.18,18.80096]
[1763512654249,5.45020035,140.21,140.18,0.68]
[1763512654566,5.45020035,140.19,140.17,4.24]
[1763512654873,2.09005063,140.19,140.18,4.24]
[1763512657179,2.09005063,140.2,140.18,4.24]
[1763512657379,18.12096,140.25,140.19,0.68]
[1763512657556,2.09005063,140.21,140.18,4.24]
[1763512658164,2.78005063,140.21,140.18,4.92]
[1763512658683,2.09005063,140.21,140.19,0.68]
[1763512659556,2.09005063,140.22,140.19,0.68]
[1763512660175,2.09005063,140.23,140.19,0.68]
[1763512660567,2.09005063,140.22,140.19,0.68]
[1763512661680,2.78005063,140.22,140.19,0.68]
[1763512661866,2.09005063,140.22,140.19,0.68]
[1763512665097,2.80005063,140.23,140.19,0.68]
[1763512665297,0.71,140.23,140.19,0.68]
[1763512665467,2.80005063,140.23,140.19,0.68]
[1763512665668,2.09005063,140.22,140.19,0.68]
[1763512665861,0.71,140.23,140.19,18.80096]
[1763512665862,2.09005063,140.23,140.19,18.80096]
[1763512666063,2.09005063,140.24,140.19,20.89101063]
[1763512666264,2.09005063,140.24,140.2,0.7]
[1763512666577,2.80005063,140.24,140.21,4.24]
[1763512666962,2.09005063,140.25,140.22,0.7]
[1763512667685,2.80005063,140.25,140.22,0.7]
[1763512669778,2.80005063,140.27,140.22,18.82096]
[1763512670285,2.80005063,140.26,140.23,0.7]
[1763512670490,2.09005063,140.26,140.24,4.24]
[1763512671184,2.80005063,140.26,140.24,4.24]
[1763512671968,2.80005063,140.25,140.24,4.24]
[1763512673073,2.80005063,140.25,140.22,18.82096]
[1763512673288,2.09005063,140.24,140.22,23.06096]
[1763512673792,2.09005063,140.23,140.22,4.24]
[1763512674087,2.80005063,140.23,140.22,4.24]
[1763512674278,2.80005063,140.23,140.2,4.24]
[1763512674466,2.09005063,140.21,140.2,4.24]
[1763512674671,0.71,140.23,140.2,4.94]
[1763512675110,2.09005063,140.22,140.2,4.94]
[1763512675411,2.09005063,140.23,140.21,0.7]
[1763512675585,2.09005063,140.24,140.21,0.7]
[1763512675778,2.09005063,140.25,140.21,0.7]
[1763512676269,2.80005063,140.25,140.21,0.7]
[1763512677401,2.09005063,140.26,140.21,20.91101063]
[1763512677581,2.09005063,140.25,140.21,18.82096]
[1763512677781,0.71,140.27,140.22,0.7]
[1763512677989,2.09005063,140.27,140.23,22.36096]
[1763512678391,2.09005063,140.27,140.24,0.7]
[1763512679295,2.09005063,140.26,140.24,0.7]
[1763512679603,2.09005063,140.26,140.23,23.06096]
[1763512680105,2.80005063,140.26,140.23,23.06096]
[1763512680321,2.09005063,140.25,140.23,4.24]
[1763512680608,2.09005063,140.25,140.22,4.24]
[1763512680609,2.09005063,140.24,140.22,4.24]
[1763512680785,2.09005063,140.23,140.22,4.24]
[1763512681100,2.80005063,140.23,140.2,4.24]
[1763512681286,2.09005063,140.22,140.2,4.24]
[1763512681472,2.09005063,140.21,140.2,4.24]
[1763512682191,2.80005063,140.22,140.2,4.24]
[1763512682697,2.09005063,140.22,140.2,4.24]
[1763512682898,0.71,140.24,140.2,4.94]
[1763512683082,0.71,140.24,140.2,4.24]
[1763512683277,2.09005063,140.22,140.2,4.24]
[1763512683488,2.09005063,140.22,140.2,23.06096]
[1763512683687,2.09005063,140.23,140.2,23.06096]
[1763512683903,2.09005063,140.23,140.2,4.94]
[1763512684108,2.09005063,140.22,140.2,4.24]
[1763512686317,2.09005063,140.22,140.19,18.82096]
[1763512686486,2.09005063,140.22,140.2,4.24]
[1763512687106,2.80005063,140.21,140.17,18.12096]
[1763512687408,2.09005063,140.18,140.16,18.12096]
[1763512687606,0.71,140.21,140.14,4.24]
[1763512687607,2.09005063,140.17,140.14,4.24]
[1763512687796,2.09005063,140.16,140.14,4.24]
[1763512688594,2.80005063,140.16,140.14,4.24]
[1763512688804,6.15544171,140.16,140.14,4.24]
[1763512688996,5.44544171,140.16,140.14,4.24]
[1763512689307,6.15544171,140.15,140.14,4.24]
[1763512690315,5.44544171,140.15,140.13,18.82096]
[1763512690479,5.44544171,140.16,140.14,0.7]
[1763512690682,0.71,140.2,140.14,0.7]
[1763512690897,9.09867649,140.18,140.14,0.7]
[1763512691497,9.09867649,140.17,140.14,0.7]
[1763512692508,9.09867649,140.16,140.13,22.36096]
[1763512692708,9.09867649,140.16,140.13,23.07096]
[1763512693007,9.79867649,140.16,140.14,4.24]
[1763512694186,9.09867649,140.15,140.14,4.24]
[1763512696310,9.09867649,140.16,140.14,4.24]
[1763512696717,9.09867649,140.15,140.14,4.24]
[1763512699983,9.09867649,140.16,140.14,4.95]
[1763512700224,9.09867649,140.16,140.14,4.24]
[1763512700703,9.09867649,140.16,140.14,4.95]
[1763512701940,9.09867649,140.16,140.14,4.24]
[1763512702128,9.81867649,140.15,140.12,0.2]
[1763512702296,9.09867649,140.13,140.12,0.2]
[1763512702793,9.81867649,140.13,140.12,0.2]
[1763512707305,23.84750418,140.13,140.1,0.2]
[1763512707505,9.09867649,140.11,140.1,0.2]
[1763512707929,9.81867649,140.11,140.1,0.2]
[1763512709913,0.72,140.11,140.1,0.2]
[1763512710117,9.81867649,140.11,140.1,0.2]
[1763512712325,9.09867649,140.11,140.1,0.2]
[1763512712518,9.81867649,140.11,140.1,0.2]
[1763512715932,14.05867649,140.11,140.1,0.2]
[1763512717540,9.09867649,140.11,140.1,0.85]
[1763512717744,9.09867649,140.11,140.1,0.2]
[1763512718248,9.09867649,140.11,140.1,0.85]
[1763512718450,4.96,140.16,140.1,0.85]
[1763512718652,9.09867649,140.11,140.1,0.2]
[1763512720852,9.81867649,140.11,140.1,0.2]
[1763512721032,9.09867649,140.11,140.1,0.2]
[1763512721624,9.81867649,140.11,140.1,0.2]
[1763512722138,9.09867649,140.11,140.1,0.2]
[1763512722360,9.81867649,140.11,140.1,0.2]
[1763512732947,3.99101168,140.11,140.1,0.2]
[1763512733559,3.27101168,140.11,140.1,0.91]
[1763512733851,3.27101168,140.11,140.1,0.2]
[1763512735850,3.99101168,140.11,140.1,0.2]
[1763512738543,3.27101168,140.11,140.1,0.2]
[1763512739047,3.99101168,140.11,140.1,0.2]
[1763512739245,3.27101168,140.11,140.1,0.2]
[1763512740342,0.72,140.12,140.1,0.2]
[1763512740531,3.27101168,140.11,140.1,0.2]
[1763512741042,3.99101168,140.11,140.1,0.2]
[1763512741235,4.24,140.13,140.1,0.91]
[1763512741430,3.27101168,140.11,140.1,0.91]
[1763512741645,3.27101168,140.11,140.1,0.2]
[1763512742157,3.27101168,140.12,140.1,0.2]
[1763512742344,3.27101168,140.12,140.1,0.91]
[1763512742863,3.27101168,140.11,140.1,0.91]
[1763512743048,3.27101168,140.11,140.1,0.2]
[1763512746977,3.99101168,140.11,140.1,0.2]
[1763512747853,3.27101168,140.11,140.1,0.2]
[1763512748256,3.99101168,140.11,140.1,0.2]
[1763512748558,3.27101168,140.11,140.1,0.2]
[1763512748961,3.99101168,140.11,140.1,0.2]
[1763512749148,3.27101168,140.11,140.1,0.2]
[1763512750966,2.09315727,140.11,140.1,0.2]
[1763512751669,2.09315727,140.11,140.1,0.91]
[1763512752065,2.09315727,140.12,140.1,0.91]
[1763512752364,2.09315727,140.14,140.11,0.71]
[1763512752865,4.94,140.18,140.11,0.71]
[1763512753064,104.3,140.3,140.13,18.12096]
[1763512753065,2.09315727,140.17,140.13,18.12096]
[1763512753265,2.09315727,140.18,140.15,18.12096]
[1763512753639,2.09315727,140.18,140.16,0.68]
[1763512754554,0.7,140.22,140.16,0.68]
[1763512754757,2.09315727,140.19,140.16,0.68]
[1763512755065,2.09315727,140.21,140.17,4.24]
[1763512755264,2.09315727,140.22,140.18,0.68]
[1763512756968,0.7,140.26,140.18,0.68]
[1763512756969,2.09315727,140.23,140.18,2.77315727]
[1763512757262,2.09315727,140.22,140.18,0.68]
[1763512757572,2.09315727,140.22,140.21,18.12096]
[1763512757947,2.09315727,140.22,140.21,18.80096]
[1763512758249,2.09315727,140.23,140.21,18.80096]
[1763512758455,2.09315727,140.23,140.22,0.68]
[1763512759272,2.09315727,140.23,140.21,18.12096]
[1763512759564,2.09315727,140.22,140.21,18.80096]
[1763512759953,0.7,140.25,140.21,18.80096]
[1763512760153,2.09315727,140.22,140.21,18.12096]
[1763512760456,0.7,140.25,140.21,18.12096]
[1763512760978,0.7,140.25,140.22,0.68]
[1763512761553,0.7,140.25,140.21,18.80096]
[1763512761999,2.09315727,140.22,140.21,18.78096]
[1763512762276,2.09315727,140.22,140.21,18.12096]
[1763512762576,2.09315727,140.22,140.21,18.78096]
[1763512763768,0.7,140.25,140.21,18.78096]
[1763512763769,2.09315727,140.23,140.21,18.78096]
[1763512764076,2.09315727,140.23,140.22,0.66]
[1763512764776,2.09315727,140.24,140.22,0.66]
[1763512765148,2.09315727,140.25,140.22,0.66]
[1763512765357,0.2,140.27,140.23,22.36096]
[1763512765358,2.09315727,140.26,140.23,22.36096]
[1763512765570,2.09315727,140.26,140.24,0.66]
[1763512766397,2.09315727,140.25,140.24,0.66]
[1763512767954,2.09315727,140.25,140.24,4.9]
[1763512768173,2.09315727,140.25,140.24,4.24]
[1763512768374,2.09315727,140.25,140.23,22.36096]
[1763512768687,2.09315727,140.24,140.23,22.36096]
[1763512768871,2.09315727,140.24,140.23,23.02096]
[1763512769178,2.09315727,140.25,140.23,23.02096]
[1763512769377,2.09315727,140.25,140.24,0.66]
[1763512769566,2.09315727,140.25,140.23,22.36096]
[1763512769774,2.09315727,140.24,140.23,22.36096]
[1763512770170,2.09315727,140.25,140.23,23.02096]
[1763512772067,2.09315727,140.25,140.23,22.36096]
[1763512772268,2.09315727,140.25,140.24,0.66]
[1763512774286,2.09315727,140.26,140.24,0.66]
[1763512774506,2.29315727,140.27,140.24,10.44882769]
[1763512774677,0.2,140.27,140.26,18.12096]
[1763512774879,0.2,140.27,140.26,23.02096]
[1763512775088,2.09315727,140.29,140.26,23.02096]
[1763512775270,2.09315727,140.29,140.27,0.66]
[1763512775871,2.09315727,140.29,140.28,4.44]
[1763512776078,2.09315727,140.3,140.28,4.44]
[1763512776276,2.09315727,140.3,140.28,5.1]
[1763512776499,2.09315727,140.3,140.29,4.24]
[1763512776709,2.09315727,140.3,140.29,4.9]
[1763512777023,2.09315727,140.3,140.29,23.02096]
[1763512777572,2.09315727,140.3,140.29,22.36096]
[1763512778580,2.09315727,140.3,140.29,23.02096]
[1763512778772,0.66,140.32,140.29,23.02096]
[1763512778978,2.09315727,140.32,140.3,0.66]
[1763512779202,2.09315727,140.33,140.3,0.66]
[1763512779704,0.2,140.34,140.32,18.12096]
[1763512779866,0.2,140.34,140.33,4.9]
[1763512780071,2.29315727,140.34,140.33,4.9]
[1763512780270,0.1,140.36,140.33,23.02096]
[1763512780467,0.1,140.36,140.34,0.66]
[1763512780800,0.1,140.38,140.36,18.12096]
[1763512781122,0.1,140.38,140.37,4.9]
[1763512781325,2.19315727,140.38,140.37,4.24]
[1763512782712,0.1,140.39,140.37,4.94]
[1763512783009,2.19315727,140.39,140.38,0.7]
[1763512783309,2.19315727,140.39,140.36,18.12096]
[1763512783513,2.09315727,140.38,140.37,4.24]
[1763512784007,2.19315727,140.39,140.37,4.94]
[1763512785187,2.19315727,140.39,140.38,2.85642874]
[1763512785506,2.88315727,140.39,140.38,2.85642874]
[1763512785716,2.19315727,140.39,140.38,2.85642874]
[1763512788024,0.1,140.39,140.38,2.85642874]
[1763512789198,0.1,140.39,140.38,3.55642874]
[1763512789893,2.19315727,140.39,140.38,3.55642874]
[1763512790090,0.1,140.39,140.38,3.55642874]
[1763512790889,0.1,140.39,140.38,2.85642874]
[1763512791796,2.19315727,140.39,140.38,2.85642874]
[1763512793098,2.88315727,140.39,140.38,2.85642874]
[1763512794399,2.19315727,140.39,140.38,2.85642874]
[1763512795521,0.1,140.39,140.38,2.85642874]
[1763512795717,2.19315727,140.39,140.38,2.85642874]
[1763512796299,0.1,140.39,140.38,3.55642874]
[1763512796500,2.19315727,140.39,140.38,2.85642874]
[1763512796700,2.88315727,140.39,140.38,7.09642874]
[1763512796900,2.19315727,140.39,140.38,7.09642874]
[1763512797500,2.88315727,140.39,140.38,2.85642874]
[1763512798315,2.19315727,140.39,140.38,2.85642874]
[1763512798512,0.1,140.39,140.38,2.85642874]
[1763512798713,2.19315727,140.39,140.38,2.85642874]
[1763512799820,2.19315727,140.39,140.38,3.55642874]
[1763512800022,0.1,140.39,140.38,3.55642874]
[1763512800207,0.1,140.39,140.38,2.85642874]
[1763512800409,2.19315727,140.39,140.38,3.55642874]
[1763512800608,0.2,140.4,140.38,3.55642874]
[1763512800921,0.2,140.4,140.39,4.94]
[1763512801524,0.2,140.4,140.39,4.24]
[1763512802031,2.29315727,140.4,140.39,4.24]
[1763512802616,2.98315727,140.4,140.38,2.85642874]
[1763512802822,2.09315727,140.39,140.38,7.09642874]
[1763512803610,2.29315727,140.4,140.38,7.79642874]
[1763512803924,0.2,140.4,140.39,0.7]
[1763512805817,2.29315727,140.4,140.38,7.79642874]
[1763512806016,2.09315727,140.39,140.38,2.85642874]
[1763512806326,2.09315727,140.39,140.38,7.09642874]
[1763512806527,2.78315727,140.39,140.37,4.24]
[1763512806716,2.78315727,140.39,140.37,4.94]
[1763512806717,2.09315727,140.39,140.37,4.94]
[1763512807041,2.29315727,140.4,140.38,7.79683676]
[1763512807232,0.2,140.4,140.38,7.79683676]
[1763512807529,2.29315727,140.4,140.38,7.79683676]
[1763512808127,2.78315727,140.39,140.38,2.85683676]
[1763512808504,0.2,140.4,140.38,2.85683676]
[1763512808714,0.2,140.4,140.39,4.94]
[1763512808919,0.2,140.4,140.39,4.24]
[1763512809118,0.2,140.4,140.39,4.94]
[1763512809558,0.2,140.4,140.39,23.06096]
[1763512810329,0.2,140.41,140.4,18.12096]
[1763512810634,0.2,140.43,140.41,18.12096]
[1763512810846,0.2,140.43,140.41,4.94]
[1763512811055,0.2,140.43,140.41,23.06096]
[1763512811278,0.2,140.43,140.42,4.94]
[1763512811560,0.2,140.45,140.43,18.12096]
[1763512811561,3.45410998,140.45,140.43,18.12096]
[1763512811932,4.14410998,140.45,140.43,18.12096]
[1763512813128,4.14410998,140.45,140.43,22.36096]
[1763512814238,3.95410998,140.44,140.43,22.36096]
[1763512814578,3.25410998,140.44,140.43,22.36096]
[1763512814740,0.9,140.45,140.43,22.36096]
[1763512814925,0.2,140.45,140.44,0.71]
[1763512815127,3.35410998,140.47,140.44,0.71]
[1763512815349,0.1,140.47,140.44,0.71]
[1763512815555,3.45410998,140.48,140.45,4.24]
[1763512815763,3.95410998,140.47,140.45,22.36096]
[1763512815931,3.25410998,140.47,140.45,22.36096]
[1763512816253,3.25410998,140.46,140.42,3.25410998]
[1763512816471,3.25410998,140.43,140.42,3.25410998]
[1763512816646,0.2,140.48,140.43,18.12096]
[1763512816841,3.25410998,140.46,140.43,4.93]
[1763512817041,3.25410998,140.46,140.44,0.71]
[1763512817241,3.25410998,140.46,140.44,18.83096]
[1763512817732,3.25410998,140.46,140.44,18.12096]
[1763512817930,3.25410998,140.47,140.45,0.71]
[1763512818125,3.25410998,140.46,140.44,23.05096]
[1763512818328,3.25410998,140.45,140.44,23.05096]
[1763512818544,3.25410998,140.45,140.44,22.34096]
[1763512818939,3.25410998,140.45,140.44,25.59506998]
[1763512820029,3.95410998,140.45,140.44,3.25410998]
[1763512820756,3.25410998,140.45,140.44,3.25410998]
[1763512821461,3.25410998,140.46,140.44,3.25410998]
[1763512821657,3.25410998,140.45,140.44,3.25410998]
[1763512822564,0.7,140.47,140.44,3.25410998]
[1763512822748,3.25410998,140.45,140.44,3.25410998]
[1763512823159,3.25410998,140.46,140.44,3.25410998]
[1763512823341,3.25410998,140.45,140.44,3.25410998]
[1763512826871,3.95410998,140.45,140.44,3.25410998]
[1763512827571,3.25410998,140.45,140.42,18.12096]
[1763512827869,3.25410998,140.43,140.42,40.23805798]
[1763512828051,3.25410998,140.43,140.42,39.53805798]
[1763512828240,3.25410998,140.43,140.42,21.41709798]
[1763512832246,3.25410998,140.43,140.42,22.11709798]
[1763512833874,3.25410998,140.44,140.42,22.11709798]
[1763512834167,3.25410998,140.44,140.43,0.7]
[1763512834364,3.25410998,140.44,140.42,22.11709798]
[1763512834868,3.25410998,140.43,140.42,22.11709798]
[1763512835550,3.95410998,140.43,140.42,21.41709798]
[1763512835748,3.95410998,140.43,140.39,0.7]
[1763512835749,21.68,140.48,140.27,0.2]
[1763512835977,0.7,140.47,140.42,0.7]
[1763512836177,3.25410998,140.46,140.43,4.24]
[1763512836354,3.25410998,140.46,140.43,4.94]
[1763512836556,0.7,140.47,140.44,18.12096]
[1763512836750,3.95410998,140.47,140.44,25.61506998]
[1763512836984,0.2,140.48,140.44,25.61506998]
[1763512836985,0.2,140.48,140.45,0.7]
[1763512837276,0.1,140.54,140.49,18.12096]
[1763512837482,0.1,140.54,140.5,3.25410998]
[1763512837649,3.35410998,140.54,140.51,4.24]
[1763512837977,3.25410998,140.53,140.51,8.19410998]
[1763512838149,0.1,140.54,140.51,8.19410998]
[1763512838150,3.35410998,140.54,140.51,8.19410998]
[1763512838767,3.25410998,140.53,140.51,8.19410998]
[1763512839148,3.25410998,140.52,140.51,7.49410998]
[1763512839365,3.25410998,140.52,140.51,8.19410998]
[1763512839582,0.1,140.54,140.51,8.19410998]
[1763512839874,3.25410998,140.52,140.51,8.19410998]
[1763512840243,3.25410998,140.52,140.46,9.78882769]
[1763512840244,3.95410998,140.52,140.46,9.78882769]
[1763512840452,3.25410998,140.47,140.45,0.7]
[1763512840677,3.25410998,140.47,140.46,3.25410998]
[1763512840884,0.7,140.5,140.46,3.25410998]
[1763512841084,3.25410998,140.48,140.47,0.7]
[1763512841389,0.7,140.53,140.47,0.7]
[1763512841592,3.25410998,140.5,140.47,4.94]
[1763512841959,3.25410998,140.5,140.48,0.7]
[1763512842662,0.7,140.52,140.47,22.36096]
[1763512842866,0.76,140.54,140.49,0.7]
[1763512843073,3.25410998,140.53,140.5,4.24]
[1763512843363,3.25410998,140.53,140.5,4.94]
[1763512843763,3.25410998,140.53,140.5,4.24]
[1763512844071,3.25410998,140.53,140.51,0.7]
[1763512844472,3.25410998,140.52,140.5,4.24]
[1763512844779,3.25410998,140.52,140.5,4.94]
[1763512845479,3.25410998,140.51,140.5,4.24]
[1763512845679,3.25410998,140.51,140.47,0.7]
[1763512845977,3.25410998,140.5,140.48,22.36096]
[1763512846578,3.25410998,140.5,140.49,0.7]
[1763512846778,3.25410998,140.51,140.49,0.7]
[1763512846971,3.25410998,140.52,140.49,18.82096]
[1763512847277,3.25410998,140.52,140.5,3.25410998]
[1763512848056,0.1,140.54,140.5,3.25410998]
[1763512848264,3.25410998,140.51,140.5,3.25410998]
[1763512849962,0.66,140.52,140.5,3.25410998]
[1763512850185,3.25410998,140.51,140.5,3.25410998]
[1763512850790,3.25410998,140.52,140.5,3.95410998]
[1763512850962,3.25410998,140.52,140.51,0.7]
[1763512851782,3.25410998,140.52,140.5,3.25410998]
[1763512851986,3.25410998,140.52,140.5,3.95410998]
[1763512853374,3.25410998,140.52,140.5,0.7]
[1763512853685,3.25410998,140.53,140.51,3.95410998]
[1763512853885,3.25410998,140.53,140.51,8.19410998]
[1763512854489,3.25410998,140.53,140.51,7.49410998]
[1763512855168,0.1,140.54,140.51,8.19410998]
[1763512855364,0.1,140.54,140.53,18.12096]
[1763512855566,0.1,140.54,140.53,18.82096]
[1763512856272,3.35410998,140.54,140.53,18.12096]
[1763512856473,0.1,140.54,140.53,18.12096]
[1763512856967,0.1,140.54,140.53,18.82096]
[1763512857168,0.1,140.54,140.53,18.12096]
[1763512857368,3.35410998,140.54,140.53,18.12096]
[1763512858176,0.1,140.54,140.53,18.12096]
[1763512858385,3.35410998,140.54,140.53,18.12096]
[1763512858693,3.35410998,140.54,140.53,39.14151702]
[1763512858874,3.35410998,140.54,140.51,7.49410998]
[1763512858875,4.01410998,140.54,140.51,7.49410998]
[1763512859190,3.25410998,140.52,140.51,7.49410998]
[1763512860175,3.91410998,140.52,140.51,3.25410998]
[1763512860363,3.25410998,140.52,140.51,3.25410998]
[1763512862488,0.1,140.54,140.51,3.95410998]
[1763512862790,0.1,140.54,140.52,0.7]
[1763512862993,0.1,140.58,140.53,4.24]
[1763512863171,3.25410998,140.57,140.54,18.12096]
[1763512863488,3.25410998,140.57,140.55,4.24]
[1763512864276,3.35410998,140.58,140.56,0.7]
[1763512864475,3.35410998,140.58,140.55,4.24]
[1763512864476,3.25410998,140.57,140.55,4.24]
[1763512864882,0.1,140.58,140.55,22.36096]
[1763512865096,0.1,140.6,140.55,22.36096]
[1763512865097,0.1,140.6,140.57,3.25410998]
[1763512865272,0.1,140.6,140.59,18.12096]
[1763512865472,3.25410998,140.64,140.59,18.12096]
[1763512865679,3.25410998,140.64,140.6,0.7]
[1763512865888,3.25410998,140.64,140.61,4.24]
[1763512866091,0.66,140.66,140.61,4.24]
[1763512866300,3.25410998,140.64,140.62,0.7]
[1763512866481,3.25410998,140.65,140.62,0.7]
[1763512866798,0.1,140.69,140.62,0.7]
[1763512867004,3.25410998,140.66,140.62,18.82096]
[1763512867170,0.76,140.69,140.62,18.82096]
[1763512867376,0.76,140.69,140.64,18.12096]
[1763512867570,0.76,140.69,140.65,4.24]
[1763512867571,3.25410998,140.68,140.65,4.24]
[1763512867770,0.76,140.69,140.66,0.7]
[1763512867771,0.1,140.69,140.66,0.7]
[1763512868073,0.1,140.69,140.66,18.82096]
[1763512868602,0.1,140.69,140.67,0.7]
[1763512868779,0.1,140.69,140.68,4.24]
[1763512869294,9.03086243,140.71,140.68,4.94]
[1763512869479,9.03086243,140.71,140.69,0.7]
[1763512869804,0.66,140.74,140.69,0.7]
[1763512870102,9.03086243,140.71,140.68,4.24]
[1763512870399,9.03086243,140.7,140.69,4.24]
[1763512870778,0.66,140.72,140.69,4.24]
[1763512870979,9.03086243,140.7,140.69,4.24]
[1763512871321,9.03086243,140.7,140.68,22.36096]
[1763512871618,9.03086243,140.7,140.68,23.06096]
[1763512872109,9.03086243,140.7,140.68,18.12096]
[1763512872305,9.03086243,140.69,140.68,4.24]
[1763512872482,9.03086243,140.7,140.68,4.24]
[1763512872682,0.71,140.71,140.68,4.24]
[1763512872991,5.40274963,140.71,140.68,4.24]
[1763512873186,5.40274963,140.71,140.68,4.96]
[1763512873399,5.40274963,140.72,140.69,18.12096]
[1763512873899,0.71,140.72,140.69,18.12096]
[1763512874108,5.40274963,140.71,140.69,18.12096]
[1763512874309,0.71,140.72,140.69,18.12096]
[1763512874604,5.40274963,140.74,140.7,0.72]
[1763512874804,0.71,140.75,140.71,4.24]
[1763512874986,5.47745475,140.77,140.73,18.12096]
[1763512875175,0.07470512,140.77,140.74,4.96]
[1763512875378,0.07470512,140.77,140.74,23.08096]
[1763512875604,0.07470512,140.77,140.75,6.12274963]
[1763512876201,0.07470512,140.77,140.75,5.40274963]
[1763512876202,5.40274963,140.76,140.75,5.40274963]
[1763512876502,5.40274963,140.76,140.75,9.64274963]
[1763512877603,6.11274963,140.76,140.75,5.40274963]
[1763512878101,5.40274963,140.76,140.75,5.40274963]
[1763512879319,0.07470512,140.77,140.75,5.40274963]
[1763512879320,0.07470512,140.77,140.75,6.12274963]
[1763512879820,5.40274963,140.76,140.75,5.40274963]
[1763512880187,6.11274963,140.76,140.7,0.72]
[1763512880381,5.40274963,140.71,140.67,21.85833396]
[1763512880700,5.40274963,140.7,140.69,6.11274963]
[1763512880887,5.40274963,140.7,140.67,4.94]
[1763512880888,5.40274963,140.7,140.68,18.12096]
[1763512881225,5.40274963,140.69,140.68,6.11274963]
[1763512881518,6.06274963,140.69,140.66,4.22]
[1763512881690,5.40274963,140.67,140.66,10.33274963]
[1763512881893,5.40274963,140.67,140.66,4.22]
[1763512882090,5.40274963,140.67,140.66,22.34096]
[1763512882299,5.40274963,140.67,140.66,4.22]
[1763512882504,6.06274963,140.67,140.64,18.12096]
[1763512882703,5.40274963,140.66,140.64,14.00882769]
[1763512882908,5.40274963,140.65,140.64,14.00882769]
[1763512883286,5.40274963,140.65,140.6,0.68]
[1763512883488,5.40274963,140.64,140.63,5.40274963]
[1763512884419,5.40274963,140.64,140.62,4.22]
[1763512884629,5.40274963,140.64,140.63,5.40274963]
[1763512885522,5.40274963,140.64,140.63,23.52370963]
[1763512886105,5.40274963,140.64,140.63,5.40274963]
[1763512886312,5.40274963,140.64,140.63,18.12096]
[1763512887033,5.40274963,140.65,140.61,21.83818561]
[1763512887232,5.40274963,140.65,140.62,4.9]
[1763512887420,5.40274963,140.65,140.62,23.02096]
[1763512888420,5.40274963,140.64,140.62,23.02096]
[1763512888621,5.40274963,140.65,140.62,23.02096]
[1763512888937,5.40274963,140.64,140.62,22.34096]
[1763512889335,0.66,140.7,140.64,18.12096]
[1763512889521,0.66,140.71,140.65,4.9]
[1763512889716,5.40274963,140.68,140.65,4.9]
[1763512890731,5.40274963,140.68,140.66,0.68]
[1763512891336,0.66,140.7,140.66,0.68]
[1763512891337,5.40274963,140.69,140.66,0.68]
[1763512891718,5.40274963,140.69,140.67,4.22]
[1763512892338,5.40274963,140.69,140.67,4.87]
[1763512892637,5.40274963,140.68,140.66,4.22]
[1763512893136,5.40274963,140.69,140.66,4.87]
[1763512893726,5.40274963,140.68,140.66,4.87]
[1763512893922,5.40274963,140.68,140.66,0.65]
[1763512894240,5.40274963,140.68,140.66,4.87]
[1763512894432,5.40274963,140.68,140.66,4.22]
[1763512894654,6.10274963,140.67,140.64,18.12096]
[1763512894817,5.40274963,140.65,140.64,18.12096]
[1763512895336,5.40274963,140.66,140.64,18.12096]
[1763512895515,5.40274963,140.67,140.65,4.87]
[1763512895711,18.12096,140.73,140.65,4.87]
[1763512895712,0.7,140.72,140.65,4.87]
[1763512895920,5.40274963,140.69,140.66,0.65]
[1763512896936,5.40274963,140.7,140.66,0.65]